fUST/lending_fUST_20260407
["ID","MTS","AMOUNT","RATE_DAILY","PERIOD"]
[419917698,1775505074825,-571.83387429,0.00023645,14]
[419917699,1775505074834,-10000.0,0.000237,4]
[419917700,1775505074843,-398.36578012,0.00023712,14]
[419917701,1775505074853,-571.83387429,0.00023712,14]
[419917702,1775505074862,-2700508.51580766,0.0002375,2]
[419917703,1775505074872,-151.0,0.0002376,2]
[419917704,1775505074882,-500.0,0.00023773,2]
[419917705,1775505074891,-500.0,0.00023773,2]
[419917706,1775505074901,-500.0,0.00023773,2]
[419917707,1775505074910,-500.0,0.00023773,2]
[419917708,1775505074919,-500.0,0.00023773,2]
[419917709,1775505074929,-357.75446278,0.00023773,2]
[419917710,1775505074938,-492.93353817,0.00023773,2]
[419917711,1775505074948,-500.0,0.00023773,2]
[419917712,1775505074957,-500.0,0.00023773,2]
[419917713,1775505074967,-500.0,0.00023773,2]
[419917714,1775505074976,-502.01820756,0.00023773,2]
[419917715,1775505074986,-500.0,0.00023773,2]
[419917716,1775505074995,-524.66480498,0.00023773,2]
[419917717,1775505075004,-168.03676445,0.00023773,2]
[419917718,1775505075013,-398.36578012,0.00023778,14]
[419917719,1775505075023,-571.83387429,0.00023778,14]
[419917720,1775505075032,-286762.94627385,0.000238,2]
[419917721,1775505075042,-151.0,0.000238,2]
[419917722,1775505075051,-223.096204,0.000238,2]
[419917723,1775505075060,-151.0,0.000238,2]
[419917724,1775505075070,-151.0,0.000238,2]
[419917725,1775505075079,-151.0,0.000238,2]
[419917726,1775505075088,-151.0,0.000238,2]
[419917727,1775505075098,-151.0,0.000238,2]
[419917728,1775505075107,-218.060347,0.000238,2]
[419917729,1775505075117,-234.756434,0.000238,2]
[419917730,1775505075126,-218.060347,0.000238,2]
[419917731,1775505075135,-159.219477,0.000238,2]
[419917732,1775505075144,-218.060347,0.000238,2]
[419917733,1775505075154,-159.219477,0.000238,2]
[419917734,1775505075163,-218.060347,0.000238,2]
[419917735,1775505075172,-159.219477,0.000238,2]
[419917736,1775505075181,-159.219477,0.000238,2]
[419917737,1775505075190,-151.0,0.000238,2]
[419917738,1775505075200,-161.980523,0.000238,2]
[419917739,1775505075209,-161.980523,0.000238,2]
[419917740,1775505075219,-161.980523,0.000238,2]
[419917741,1775505075228,-161.980523,0.000238,2]
[419917742,1775505075238,-151.0,0.000238,2]
[419917743,1775505075247,-280.382243,0.000238,2]
[419917744,1775505075256,-280.382243,0.000238,2]
[419917745,1775505075266,-280.382243,0.000238,2]
[419917746,1775505075275,-280.382243,0.000238,2]
[419917747,1775505075284,-151.0,0.000238,2]
[419917748,1775505075294,-151.0,0.000238,2]
[419917749,1775505075303,-151.0,0.000238,2]
[419917750,1775505075312,-151.0,0.000238,2]
[419917751,1775505075321,-151.0,0.000238,2]
[419917752,1775505075330,-256.25132,0.000238,2]
[419917753,1775505075340,-256.25132,0.000238,2]
[419917754,1775505075349,-256.25132,0.000238,2]
[419917755,1775505075358,-256.25132,0.000238,2]
[419917756,1775505075367,-151.0,0.000238,2]
[419917757,1775505075376,-151.0,0.000238,2]
[419917758,1775505075386,-151.0,0.000238,2]
[419917759,1775505075396,-151.0,0.000238,2]
[419917760,1775505075405,-151.0,0.000238,2]
[419917761,1775505075415,-151.0,0.000238,2]
[419917762,1775505075424,-151.0,0.000238,2]
[419917763,1775505075434,-380.904697,0.000238,2]
[419917764,1775505075443,-380.904697,0.000238,2]
[419917765,1775505075453,-380.904697,0.000238,2]
[419917766,1775505075462,-380.904697,0.000238,2]
[419917767,1775505075472,-154.78417,0.000238,2]
[419917768,1775505075481,-154.78417,0.000238,2]
[419917769,1775505075491,-154.78417,0.000238,2]
[419917770,1775505075500,-151.0,0.000238,2]
[419917771,1775505075509,-154.78417,0.000238,2]
[419917772,1775505075518,-167.541765,0.000238,2]
[419917773,1775505075528,-151.0,0.000238,2]
[419917774,1775505075537,-151.0,0.000238,2]
[419917775,1775505075546,-151.0,0.000238,2]
[419917776,1775505075555,-151.0,0.000238,2]
[419917777,1775505075564,-151.0,0.000238,2]
[419917778,1775505075574,-151.0,0.000238,2]
[419917779,1775505075583,-151.0,0.000238,2]
[419917780,1775505075593,-10000.0,0.000238,4]
[419917781,1775505075602,-215.042175,0.000238,2]
[419917782,1775505075611,-215.042175,0.000238,2]
[419917783,1775505075621,-159.782388,0.000238,2]
[419917784,1775505075630,-215.042175,0.000238,2]
[419917785,1775505075639,-215.042175,0.000238,2]
[419917786,1775505075648,-151.0,0.000238,2]
[419917787,1775505075657,-151.0,0.000238,2]
[419917788,1775505075667,-151.0,0.000238,2]
[419917789,1775505075676,-151.0,0.000238,2]
[419917790,1775505075686,-151.0,0.000238,2]
[419917791,1775505075695,-716.339666,0.000238,2]
[419917792,1775505075705,-151.0,0.000238,2]
[419917793,1775505075714,-716.339666,0.000238,2]
[419917794,1775505075724,-716.339666,0.000238,2]
[419917795,1775505075733,-716.339666,0.000238,2]
[419917796,1775505075743,-2477.453712,0.000238,2]
[419917797,1775505075752,-151.0,0.000238,2]
[419917798,1775505075761,-2477.453712,0.000238,2]
[419917799,1775505075771,-151.0,0.000238,2]
[419917800,1775505075780,-151.0,0.000238,2]
[419917801,1775505075789,-2477.453712,0.000238,2]
[419917802,1775505075798,-151.0,0.000238,2]
[419917803,1775505075807,-2477.453712,0.000238,2]
[419917804,1775505075816,-292.240383,0.000238,2]
[419917805,1775505075826,-292.240383,0.000238,2]
[419917806,1775505075835,-292.240383,0.000238,2]
[419917807,1775505075844,-292.240383,0.000238,2]
[419917808,1775505075854,-151.0,0.000238,2]
[419917809,1775505075864,-151.0,0.000238,2]
[419917810,1775505075874,-151.0,0.000238,2]
[419917811,1775505075884,-448.651462,0.000238,2]
[419917812,1775505075893,-448.651462,0.000238,2]
[419917813,1775505075902,-533.55893,0.000238,2]
[419917814,1775505075912,-448.651462,0.000238,2]
[419917815,1775505075922,-533.55893,0.000238,2]
[419917816,1775505075932,-151.0,0.000238,2]
[419917817,1775505075941,-533.55893,0.000238,2]
[419917818,1775505075950,-448.651462,0.000238,2]
[419917819,1775505075959,-151.0,0.000238,2]
[419917820,1775505075969,-1783.615177,0.000238,2]
[419917821,1775505075978,-533.55893,0.000238,2]
[419917822,1775505075989,-151.0,0.000238,2]
[419917823,1775505075999,-1783.615177,0.000238,2]
[419917824,1775505076008,-151.0,0.000238,2]
[419917825,1775505076017,-1783.615177,0.000238,2]
[419917826,1775505076027,-1783.615177,0.000238,2]
[419917827,1775505076036,-706.54105,0.000238,2]
[419917828,1775505076045,-151.0,0.000238,2]
[419917829,1775505076054,-152.2628,0.000238,2]
[419917830,1775505076063,-706.54105,0.000238,2]
[419917831,1775505076073,-706.54105,0.000238,2]
[419917832,1775505076082,-156.138898,0.000238,2]
[419917833,1775505076091,-706.54105,0.000238,2]
[419917834,1775505076100,-151.0,0.000238,2]
[419917835,1775505076109,-151.0,0.000238,2]
[419917836,1775505076119,-329.200221,0.000238,2]
[419917837,1775505076127,-155.908527,0.000238,2]
[419917838,1775505076136,-151.0,0.000238,2]
[419917839,1775505076145,-329.200221,0.000238,2]
[419917840,1775505076155,-155.908527,0.000238,2]
[419917841,1775505076164,-151.0,0.000238,2]
[419917842,1775505076172,-155.908527,0.000238,2]
[419917843,1775505076181,-155.580008,0.000238,2]
[419917844,1775505076191,-155.908527,0.000238,2]
[419917845,1775505076200,-235.225404,0.000238,2]
[419917846,1775505076209,-329.200221,0.000238,2]
[419917847,1775505076219,-151.0,0.000238,2]
[419917848,1775505076227,-207.543901,0.000238,2]
[419917849,1775505076237,-235.225404,0.000238,2]
[419917850,1775505076246,-329.200221,0.000238,2]
[419917851,1775505076255,-151.0,0.000238,2]
[419917852,1775505076265,-151.0,0.000238,2]
[419917853,1775505076274,-243.832516,0.000238,2]
[419917854,1775505076284,-235.225404,0.000238,2]
[419917855,1775505076293,-151.0,0.000238,2]
[419917856,1775505076302,-243.832516,0.000238,2]
[419917857,1775505076311,-235.89258154,0.00023807,14]
[419917858,1775505076320,-179.52213445,0.00023814,14]
[419917859,1775505076330,-398.36578012,0.00023845,14]
[419917860,1775505076340,-571.83387429,0.00023845,14]
[419917861,1775505076349,-10000.0,0.000239,4]
[419917862,1775505076358,-807.26,0.0002391,3]
[419917863,1775505076367,-403.62,0.0002391,3]
[419917864,1775505076376,-398.36578012,0.00023912,14]
[419917865,1775505076385,-571.83387429,0.00023912,14]
[419917866,1775505076394,-193.313445,0.00023964,2]
[419917867,1775505076403,-398.36578012,0.00023978,30]
[419917868,1775505076413,-571.83387429,0.00023978,30]
[419917869,1775505076422,-378.35250167,0.00023989,2]
[419917870,1775505076431,-5467.61290127,0.00023998,2]
[419917871,1775505076441,-220.0,0.00024,21]
[419917872,1775505076451,-250.0,0.00024,21]
[419917873,1775505076460,-165.0,0.00024,2]
[419917874,1775505076469,-223.0,0.00024,2]
[419917875,1775505076478,-398.36578012,0.00024045,30]
[419917876,1775505076488,-571.83387429,0.00024045,30]
[419917877,1775505076497,-235.89258154,0.00024083,30]
[419917878,1775505076506,-179.52213445,0.00024088,30]
[419917879,1775505076515,-296.70995863,0.00024095,5]
[419917880,1775505076524,-398.36578012,0.00024112,30]
[419917881,1775505076533,-571.83387429,0.00024112,30]
[419917882,1775505076542,-152.0,0.00024151,2]
[419917883,1775505076552,-3018.636036,0.00024172,2]
[419917884,1775505076561,-1502.561862,0.00024172,2]
[419917885,1775505076570,-398.36578012,0.00024179,30]
[419917886,1775505076579,-571.83387429,0.00024179,30]
[419917887,1775505076588,-398.36578012,0.00024245,30]
[419917888,1775505076597,-571.83387429,0.00024245,30]
[419917889,1775505076606,-278.622905,0.00024304,14]
[419917890,1775505076616,-347.215746,0.00024304,14]
[419917891,1775505076625,-160.0,0.00024304,14]
[419917892,1775505076634,-3360.146453,0.00024304,14]
[419917893,1775505076643,-6560.292907,0.00024304,14]
[419917894,1775505076652,-211.296501,0.00024304,14]
[419917895,1775505076661,-398.36578012,0.00024312,30]
[419917896,1775505076670,-571.83387429,0.00024312,30]
[419917897,1775505076679,-1000.0,0.00024321,2]
[419917898,1775505076688,-151.65544961,0.00024321,2]
[419917899,1775505076697,-1000.0,0.00024321,2]
[419917900,1775505076706,-1000.0,0.00024321,2]
[419917901,1775505076715,-333.93444507,0.00024321,2]
[419917902,1775505076724,-1000.0,0.00024321,2]
[419917903,1775505076734,-1000.0,0.00024321,2]
[419917904,1775505076743,-1000.0,0.00024321,2]
[419917905,1775505076752,-1000.0,0.00024321,2]
[419917906,1775505076761,-235.89258154,0.0002436,60]
[419917907,1775505076771,-179.52213445,0.00024361,30]
[419917908,1775505076779,-398.36578012,0.00024379,60]
[419917909,1775505076788,-571.83387429,0.00024379,60]
[419917910,1775505076798,-299.33671,0.00024402,14]
[419917911,1775505076807,-160.0,0.00024402,14]
[419917912,1775505076816,-912.378804,0.00024402,14]
[419917913,1775505076825,-1664.757609,0.00024402,14]
[419917914,1775505076834,-155.15,0.00024422,2]
[419917915,1775505076843,-155.15,0.00024422,2]
[419917916,1775505076852,-155.15,0.00024422,2]
[419917917,1775505076861,-155.15,0.00024424,2]
[419917918,1775505076873,-155.15,0.00024424,2]
[419917919,1775505076883,-155.15,0.00024424,2]
[419917920,1775505076892,-155.13,0.00024426,2]
[419917921,1775505076901,-155.15,0.00024426,2]
[419917922,1775505076911,-155.15,0.00024426,2]
[419917923,1775505076985,-398.36578012,0.00024446,60]
[419917924,1775505076994,-571.83387429,0.00024446,60]
[419917925,1775505077004,-164.0,0.00024484,3]
[419917926,1775505077012,-162.0,0.00024484,3]
[419917927,1775505077022,-398.36578012,0.00024512,60]
[419917928,1775505077031,-571.83387429,0.00024512,60]
[419917929,1775505077040,-398.36578012,0.00024579,60]
[419917930,1775505077049,-571.83387429,0.00024579,60]
[419917931,1775505077058,-179.52213445,0.00024635,60]
[419917932,1775505077068,-235.89258154,0.00024636,60]
[419917933,1775505077078,-398.36578012,0.00024646,60]
[419917934,1775505077087,-571.83387429,0.00024646,60]
[419917935,1775505077095,-1285.86,0.00024658,5]
[419917936,1775505077104,-250.0,0.00024658,5]
[419917937,1775505077113,-250.0,0.00024658,5]
[419917938,1775505077122,-250.0,0.00024658,5]
[419917939,1775505077131,-251.59,0.00024658,5]
[419917940,1775505077140,-151.0,0.00024658,2]
[419917941,1775505077148,-151.0,0.00024658,2]
[419917942,1775505077158,-151.0,0.00024658,2]
[419917943,1775505077167,-398.36578012,0.00024712,60]
[419917944,1775505077176,-571.83387429,0.00024712,60]
[419917945,1775505077185,-165.87578142,0.00024773,2]
[419917946,1775505077194,-165.29319727,0.00024773,2]
[419917947,1775505077203,-47332.02483583,0.000248,2]
[419917948,1775505077211,-151.0,0.000248,2]
[419917949,1775505077220,-151.0,0.000248,2]
[419917950,1775505077229,-151.0,0.000248,2]
[419917951,1775505077243,-279.992,0.000248,2]
[419917952,1775505077251,-159.219477,0.000248,2]
[419917953,1775505077260,-159.219477,0.000248,2]
[419917954,1775505077270,-159.219477,0.000248,2]
[419917955,1775505077279,-159.219477,0.000248,2]
[419917956,1775505077288,-151.875933,0.000248,2]
[419917957,1775505077297,-151.0,0.000248,2]
[419917958,1775505077306,-151.0,0.000248,2]
[419917959,1775505077315,-151.0,0.000248,2]
[419917960,1775505077324,-151.0,0.000248,2]
[419917961,1775505077333,-256.25132,0.000248,2]
[419917962,1775505077342,-256.25132,0.000248,2]
[419917963,1775505077351,-256.25132,0.000248,2]
[419917964,1775505077360,-256.25132,0.000248,2]
[419917965,1775505077369,-151.0,0.000248,2]
[419917966,1775505077378,-151.0,0.000248,2]
[419917967,1775505077387,-151.0,0.000248,2]
[419917968,1775505077396,-151.0,0.000248,2]
[419917969,1775505077405,-151.0,0.000248,2]
[419917970,1775505077415,-151.0,0.000248,2]
[419917971,1775505077424,-151.0,0.000248,2]
[419917972,1775505077433,-380.904697,0.000248,2]
[419917973,1775505077442,-380.904697,0.000248,2]
[419917974,1775505077452,-380.904697,0.000248,2]
[419917975,1775505077461,-380.904697,0.000248,2]
[419917976,1775505077471,-154.78417,0.000248,2]
[419917977,1775505077480,-154.78417,0.000248,2]
[419917978,1775505077489,-295.015234,0.000248,2]
[419917979,1775505077498,-154.78417,0.000248,2]
[419917980,1775505077507,-154.78417,0.000248,2]
[419917981,1775505077517,-151.0,0.000248,2]
[419917982,1775505077526,-151.0,0.000248,2]
[419917983,1775505077535,-151.0,0.000248,2]
[419917984,1775505077544,-151.0,0.000248,2]
[419917985,1775505077553,-151.0,0.000248,2]
[419917986,1775505077562,-151.0,0.000248,2]
[419917987,1775505077571,-151.0,0.000248,2]
[419917988,1775505077580,-151.0,0.000248,2]
[419917989,1775505077590,-151.0,0.000248,2]
[419917990,1775505077599,-151.0,0.00024851,2]
[419917991,1775505077608,-151.0,0.00024851,2]
[419917992,1775505077618,-218.060347,0.00024851,2]
[419917993,1775505077627,-218.060347,0.00024851,2]
[419917994,1775505077636,-218.060347,0.00024851,2]
[419917995,1775505077646,-218.060347,0.00024851,2]
[419917996,1775505077655,-151.0,0.00024851,2]
[419917997,1775505077664,-161.980523,0.00024851,2]
[419917998,1775505077673,-161.980523,0.00024851,2]
[419917999,1775505077682,-161.980523,0.00024851,2]
[419918000,1775505077691,-161.980523,0.00024851,2]
[419918001,1775505077700,-151.0,0.00024851,2]
[419918002,1775505077709,-280.382243,0.00024851,2]
[419918003,1775505077719,-280.382243,0.00024851,2]
[419918004,1775505077728,-280.382243,0.00024851,2]
[419918005,1775505077738,-280.382243,0.00024851,2]
[419918006,1775505077747,-1000.0,0.00024868,2]
[419918007,1775505077756,-1500.0,0.00024868,2]
[419918008,1775505077766,-1500.0,0.00024868,2]
[419918009,1775505077775,-1500.0,0.00024868,2]
[419918010,1775505077784,-1500.0,0.00024868,2]
[419918011,1775505077793,-1318.48539206,0.00024868,2]
[419918012,1775505077802,-1500.0,0.00024868,2]
[419918013,1775505077811,-451368.956823,0.000249,2]
[419918014,1775505077821,-151.0,0.000249,2]
[419918015,1775505077830,-151.0,0.000249,2]
[419918016,1775505077839,-151.0,0.000249,2]
[419918017,1775505077848,-533.55893,0.000249,2]
[419918018,1775505077856,-533.55893,0.000249,2]
[419918019,1775505077866,-151.0,0.000249,2]
[419918020,1775505077875,-533.55893,0.000249,2]
[419918021,1775505077884,-151.0,0.000249,2]
[419918022,1775505077894,-1783.615177,0.000249,2]
[419918023,1775505077903,-151.0,0.000249,2]
[419918024,1775505077912,-1783.615177,0.000249,2]
[419918025,1775505077921,-151.0,0.000249,2]
[419918026,1775505077931,-1783.615177,0.000249,2]
[419918027,1775505077940,-1783.615177,0.000249,2]
[419918028,1775505077950,-533.55893,0.000249,2]
[419918029,1775505077959,-706.54105,0.000249,2]
[419918030,1775505077968,-151.0,0.000249,2]
[419918031,1775505077977,-706.54105,0.000249,2]
[419918032,1775505077987,-706.54105,0.000249,2]
[419918033,1775505077996,-706.54105,0.000249,2]
[419918034,1775505078005,-199.670436,0.000249,2]
[419918035,1775505078015,-151.0,0.000249,2]
[419918036,1775505078024,-329.200221,0.000249,2]
[419918037,1775505078033,-155.908527,0.000249,2]
[419918038,1775505078044,-151.0,0.000249,2]
[419918039,1775505078053,-329.200221,0.000249,2]
[419918040,1775505078062,-155.908527,0.000249,2]
[419918041,1775505078071,-151.0,0.000249,2]
[419918042,1775505078081,-155.908527,0.000249,2]
[419918043,1775505078090,-155.908527,0.000249,2]
[419918044,1775505078100,-235.225404,0.000249,2]
[419918045,1775505078108,-329.200221,0.000249,2]
[419918046,1775505078118,-151.0,0.000249,2]
[419918047,1775505078128,-235.225404,0.000249,2]
[419918048,1775505078137,-329.200221,0.000249,2]
[419918049,1775505078146,-151.0,0.000249,2]
[419918050,1775505078156,-151.0,0.000249,2]
[419918051,1775505078165,-243.832516,0.000249,2]
[419918052,1775505078175,-235.225404,0.000249,2]
[419918053,1775505078184,-151.0,0.000249,2]
[419918054,1775505078193,-1242.0,0.00024932,5]
[419918055,1775505078203,-715.89997934,0.00025,2]
[419918056,1775505078212,-1974.8197804,0.00025,2]
[419918057,1775505078221,-1000.0,0.00025,10]
[419918058,1775505078231,-1000.0,0.00025,10]
[419918059,1775505078241,-1000.0,0.00025,10]
[419918060,1775505078250,-6016.76742072,0.00025,2]
[419918061,1775505078259,-165.0,0.00025,2]
[419918062,1775505078269,-223.0,0.00025,2]
[419918063,1775505078278,-206.851626,0.00025,2]
[419918064,1775505078288,-151.0,0.00025,2]
[419918065,1775505078297,-151.0,0.00025,2]
[419918066,1775505078307,-151.0,0.00025,2]
[419918067,1775505078316,-151.0,0.00025,2]
[419918068,1775505078325,-151.0,0.00025,2]
[419918069,1775505078335,-1078.53,0.00025,30]
[419918070,1775505078344,-168.0,0.00025106,2]
[419918071,1775505078354,-9929.78654253,0.00025196,25]
[419918072,1775505078363,-1242.0,0.00025205,5]
[419918073,1775505078373,-800.0,0.0002522,2]
[419918074,1775505078382,-800.0,0.00025221,2]
[419918075,1775505078391,-228.43516693,0.00025248,2]
[419918076,1775505078401,-151.0,0.00025254,2]
[419918077,1775505078411,-317.58409387,0.00025261,7]
[419918078,1775505078420,-250.0,0.00025321,2]
[419918079,1775505078430,-807.59267417,0.00025336,2]
[419918080,1775505078440,-1654.98109042,0.00025339,27]
[419918081,1775505078449,-308.0,0.00025342,16]
[419918082,1775505078459,-4971.67584201,0.00025344,2]
[419918083,1775505078469,-1097.340095,0.0002538,5]
[419918084,1775505078478,-1523.29283346,0.00025398,11]
[419918085,1775505078488,-214.36,0.000254,3]
[419918086,1775505078498,-1000.0,0.000254,5]
[419918087,1775505078508,-2000.0,0.00025416,2]
[419918088,1775505078517,-744.51150319,0.00025416,2]
[419918089,1775505078527,-2000.0,0.00025416,2]
[419918090,1775505078536,-2000.0,0.00025416,2]
[419918091,1775505078546,-2000.0,0.00025416,2]
[419918092,1775505078556,-151.0,0.00025444,2]
[419918093,1775505078566,-151.0,0.00025444,2]
[419918094,1775505078576,-151.0,0.00025444,2]
[419918095,1775505078585,-151.0,0.00025444,2]
[419918096,1775505078595,-151.0,0.00025444,2]
[419918097,1775505078605,-218.060347,0.00025444,2]
[419918098,1775505078614,-218.060347,0.00025444,2]
[419918099,1775505078624,-159.219477,0.00025444,2]
[419918100,1775505078633,-218.060347,0.00025444,2]
[419918101,1775505078643,-159.219477,0.00025444,2]
[419918102,1775505078653,-218.060347,0.00025444,2]
[419918103,1775505078663,-159.219477,0.00025444,2]
[419918104,1775505078672,-159.219477,0.00025444,2]
[419918105,1775505078681,-155.379111,0.00025444,2]
[419918106,1775505078691,-161.980523,0.00025444,2]
[419918107,1775505078701,-161.980523,0.00025444,2]
[419918108,1775505078711,-161.980523,0.00025444,2]
[419918109,1775505078721,-161.980523,0.00025444,2]
[419918110,1775505078730,-151.0,0.00025444,2]
[419918111,1775505078740,-280.382243,0.00025444,2]
[419918112,1775505078751,-280.382243,0.00025444,2]
[419918113,1775505078760,-280.382243,0.00025444,2]
[419918114,1775505078769,-280.382243,0.00025444,2]
[419918115,1775505078778,-151.0,0.00025444,2]
[419918116,1775505078787,-151.0,0.00025444,2]
[419918117,1775505078796,-151.0,0.00025444,2]
[419918118,1775505078805,-151.0,0.00025444,2]
[419918119,1775505078815,-256.25132,0.00025444,2]
[419918120,1775505078824,-256.25132,0.00025444,2]
[419918121,1775505078834,-256.25132,0.00025444,2]
[419918122,1775505078844,-256.25132,0.00025444,2]
[419918123,1775505078853,-151.0,0.00025444,2]
[419918124,1775505078863,-151.0,0.00025444,2]
[419918125,1775505078872,-151.0,0.00025444,2]
[419918126,1775505078882,-151.0,0.00025444,2]
[419918127,1775505078891,-281.475561,0.00025444,2]
[419918128,1775505078901,-151.0,0.00025444,2]
[419918129,1775505078910,-203.095298,0.00025444,2]
[419918130,1775505078920,-380.904697,0.00025444,2]
[419918131,1775505078929,-380.904697,0.00025444,2]
[419918132,1775505078938,-380.904697,0.00025444,2]
[419918133,1775505078948,-380.904697,0.00025444,2]
[419918134,1775505078958,-154.78417,0.00025444,2]
[419918135,1775505078967,-154.78417,0.00025444,2]
[419918136,1775505078976,-154.78417,0.00025444,2]
[419918137,1775505078986,-154.78417,0.00025444,2]
[419918138,1775505078996,-151.0,0.00025444,2]
[419918139,1775505079006,-151.0,0.00025444,2]
[419918140,1775505079016,-188.0,0.00025444,2]
[419918141,1775505079026,-151.0,0.00025444,2]
[419918142,1775505079035,-151.640365,0.00025444,2]
[419918143,1775505079045,-183.809739,0.00025444,2]
[419918144,1775505079055,-151.0,0.00025444,2]
[419918145,1775505079065,-151.0,0.00025444,2]
[419918146,1775505079075,-268.715312,0.00025444,2]
[419918147,1775505079084,-1847004.72247059,0.00025444,2]
[419918148,1775505080164,-1245.35456437,0.0002245,2]
[419918149,1775505080182,-3936.31747767,0.0002245,2]
[419918150,1775505080692,3811.56217945,0.00032777,120]
[419918158,1775505191996,4136.53115501,0.00027636,120]
[419918159,1775505302776,10050.65,0.0003287,120]
[419918160,1775505681109,-1000.0,0.00013699,2]
[419918161,1775505744767,475.0,0.00032008,120]
[419918162,1775505745021,475.0,0.00032008,120]
[419918163,1775505745276,475.0,0.00032008,120]
[419918164,1775505745529,475.0,0.00032008,120]
[419918192,1775506218211,200124.72962862,0.0003,120]
[419918198,1775506232636,-1000.0,0.00013699,2]
[419918199,1775506232647,-615.0,0.00013699,2]
[419918200,1775506232656,-151.0,0.00014795,2]
[419918201,1775506232666,-3297.02922807,0.00016,7]
[419918202,1775506232678,-567.76,0.00016,7]
[419918242,1775506237874,-923.28486232,0.00016,7]
[419918244,1775506237886,-478.85715799,0.00016,7]
[419918504,1775506240607,-2283.35270784,0.00016,7]
[419918767,1775506242915,-431.83675393,0.00016,7]
[419918770,1775506242926,-78091.87928985,0.00016,7]
[419918772,1775506242936,-154.33316872,0.00018464,2]
[419918774,1775506242945,-918.56169037,0.0001918,2]
[419918776,1775506242955,-153.0,0.00022,2]
[419918778,1775506242963,-152.0,0.00022,2]
[419918780,1775506242973,-171.0,0.00022,2]
[419918782,1775506242982,-251.0,0.00022,2]
[419918784,1775506242991,-153.0,0.00022,2]
[419918786,1775506243001,-12045.97348736,0.00022,2]
[419918788,1775506243012,-24518.27353561,0.00022,2]
[419918790,1775506243027,-865.63825528,0.00022,2]
[419919044,1775506246170,-500.0,0.00015999,2]
[419919046,1775506246179,-500.0,0.00015999,2]
[419919048,1775506246189,-500.0,0.00015999,2]
[419919049,1775506246198,-180.38454016,0.00015999,2]
[419919051,1775506246207,-500.0,0.00015999,2]
[419919053,1775506246216,-500.0,0.00015999,2]
[419919086,1775506246476,-500.0,0.00015999,2]
[419919088,1775506246486,-500.0,0.00015999,2]
[419919090,1775506246496,-500.0,0.00015999,2]
[419919092,1775506246505,-500.0,0.00015999,2]
[419919094,1775506246514,-500.0,0.00015999,2]
[419919096,1775506246523,-408.99987152,0.00015999,2]
[419919098,1775506246532,-558.00524976,0.00015999,2]
[419919099,1775506246542,-375.84459467,0.00015999,2]
[419919101,1775506246552,-500.0,0.00015999,2]
[419919103,1775506246561,-500.0,0.00015999,2]
[419919105,1775506246570,-500.0,0.00015999,2]
[419919107,1775506246579,-500.0,0.00015999,2]
[419919109,1775506246588,-500.0,0.00015999,2]